[Event "Late-Titled-Tuesday-Blitz-February-27-2024"]
[Site "Chess.com"]
[Date "2024.02.27"]
[Round "5"]
[White "Mikayel99"]
[Black "grzechu96"]
[Result "1-0"]
[WhiteElo "2564"]
[BlackElo "2746"]
[TimeControl "180+1"]
[EndTime "14:52:35 PST"]
[Termination "Mikayel99 won by resignation"]

1. e4 {[%clk 0:03:00.9]} 1... c5 {[%clk 0:03:00.1]} 2. Nf3 {[%clk 0:02:53.6]}
2... d6 {[%clk 0:03:00.5]} 3. Bb5+ {[%clk 0:02:53]} 3... Bd7 {[%clk 0:03:00.6]}
4. Bxd7+ {[%clk 0:02:53]} 4... Nxd7 {[%clk 0:03:01.5]} 5. O-O {[%clk 0:02:51.9]}
5... Ngf6 {[%clk 0:03:01.8]} 6. Re1 {[%clk 0:02:52]} 6... e6 {[%clk 0:03:02.2]}
7. b3 {[%clk 0:02:51.5]} 7... Be7 {[%clk 0:03:01.9]} 8. Bb2 {[%clk 0:02:51.4]}
8... O-O {[%clk 0:03:02.3]} 9. d4 {[%clk 0:02:51]} 9... cxd4 {[%clk 0:02:43.7]}
10. Bxd4 {[%clk 0:02:51.9]} 10... a6 {[%clk 0:02:43.1]} 11. Nbd2 {[%clk
0:02:49.3]} 11... Rc8 {[%clk 0:02:42.9]} 12. c4 {[%clk 0:02:48.6]} 12... b5
{[%clk 0:02:43.3]} 13. Qe2 {[%clk 0:02:45.4]} 13... Qa5 {[%clk 0:02:43.1]} 14.
Rec1 {[%clk 0:02:38.4]} 14... b4 {[%clk 0:02:24.3]} 15. e5 {[%clk 0:02:28]}
15... dxe5 {[%clk 0:02:24.2]} 16. Nxe5 {[%clk 0:02:28.9]} 16... Nxe5 {[%clk
0:02:20.9]} 17. Qxe5 {[%clk 0:02:25]} 17... Bc5 {[%clk 0:02:11.4]} 18. Ne4
{[%clk 0:02:04.6]} 18... Bxd4 {[%clk 0:01:50.4]} 19. Nxf6+ {[%clk 0:02:02.7]}
19... gxf6 {[%clk 0:01:50.6]} 20. Qxa5 {[%clk 0:02:03.6]} 20... Bxa1 {[%clk
0:01:50.1]} 21. Rxa1 {[%clk 0:02:03.4]} 21... Rfd8 {[%clk 0:01:51]} 22. Qxb4
{[%clk 0:02:01.2]} 22... Rd7 {[%clk 0:01:49]} 23. g3 {[%clk 0:01:59.8]} 23...
Kg7 {[%clk 0:01:48]} 24. Rc1 {[%clk 0:02:00]} 24... f5 {[%clk 0:01:48.1]} 25. c5
{[%clk 0:02:00.1]} 25... Rc6 {[%clk 0:01:48.6]} 26. a3 {[%clk 0:01:58.2]} 26...
Rd5 {[%clk 0:01:48.8]} 27. Qc3+ {[%clk 0:01:58.1]} 27... Kf8 {[%clk 0:01:48.8]}
28. Qh8+ {[%clk 0:01:56.3]} 28... Ke7 {[%clk 0:01:49.3]} 29. b4 {[%clk
0:01:56.9]} 29... Rd3 {[%clk 0:01:48.7]} 30. Qa8 {[%clk 0:01:54.4]} 1-0

[Event "Late-Titled-Tuesday-Blitz-February-27-2024"]
[Site "Chess.com"]
[Date "2024.02.27"]
[Round "5"]
[White "BabageldiAnnaberdiyev"]
[Black "Akhayan"]
[Result "1-0"]
[WhiteElo "2649"]
[BlackElo "2428"]
[TimeControl "180+1"]
[EndTime "14:52:37 PST"]
[Termination "BabageldiAnnaberdiyev won by resignation"]

1. e4 {[%clk 0:03:00.9]} 1... c5 {[%clk 0:02:59.3]} 2. Nf3 {[%clk 0:03:00.8]}
2... e6 {[%clk 0:02:59]} 3. d3 {[%clk 0:03:01.7]} 3... Nf6 {[%clk 0:02:58.6]} 4.
Nbd2 {[%clk 0:03:02.6]} 4... Nc6 {[%clk 0:02:59.2]} 5. g3 {[%clk 0:03:03.5]}
5... d5 {[%clk 0:02:57.7]} 6. Bg2 {[%clk 0:03:04.1]} 6... dxe4 {[%clk
0:02:57.7]} 7. dxe4 {[%clk 0:03:04.7]} 7... Be7 {[%clk 0:02:57.5]} 8. O-O {[%clk
0:03:05.2]} 8... O-O {[%clk 0:02:58.2]} 9. c3 {[%clk 0:03:03.3]} 9... b6 {[%clk
0:02:56.6]} 10. Re1 {[%clk 0:03:03.8]} 10... Ba6 {[%clk 0:02:54.6]} 11. Qa4
{[%clk 0:03:03.4]} 11... Bb7 {[%clk 0:02:52.9]} 12. e5 {[%clk 0:02:51.3]} 12...
Nd7 {[%clk 0:02:49.1]} 13. Nf1 {[%clk 0:02:48.8]} 13... Qc7 {[%clk 0:02:48.8]}
14. Bf4 {[%clk 0:02:48.3]} 14... h6 {[%clk 0:02:47.8]} 15. h4 {[%clk 0:02:47.5]}
15... a6 {[%clk 0:02:42.5]} 16. N1h2 {[%clk 0:02:47]} 16... b5 {[%clk
0:02:40.3]} 17. Qc2 {[%clk 0:02:47.6]} 17... c4 {[%clk 0:02:35.8]} 18. Ng4
{[%clk 0:02:43.1]} 18... Kh8 {[%clk 0:02:27]} 19. Rad1 {[%clk 0:02:33.1]} 19...
Nc5 {[%clk 0:02:24.7]} 20. Bxh6 {[%clk 0:02:27.4]} 20... gxh6 {[%clk 0:02:22.4]}
21. Qd2 {[%clk 0:02:27.3]} 21... f6 {[%clk 0:01:08.6]} 22. Qxh6+ {[%clk
0:02:24.3]} 22... Kg8 {[%clk 0:01:09.3]} 23. exf6 {[%clk 0:02:23.2]} 1-0

[Event "Late-Titled-Tuesday-Blitz-February-27-2024"]
[Site "Chess.com"]
[Date "2024.02.27"]
[Round "5"]
[White "ozates"]
[Black "Josetricks"]
[Result "1-0"]
[WhiteElo "2618"]
[BlackElo "2471"]
[TimeControl "180+1"]
[EndTime "14:52:50 PST"]
[Termination "ozates won by resignation"]

1. e4 {[%clk 0:03:00.9]} 1... g6 {[%clk 0:02:58.7]} 2. d4 {[%clk 0:03:00.8]}
2... Bg7 {[%clk 0:02:59.2]} 3. Nc3 {[%clk 0:03:01.5]} 3... c6 {[%clk 0:02:57.2]}
4. Nf3 {[%clk 0:02:59.1]} 4... d5 {[%clk 0:02:57.3]} 5. h3 {[%clk 0:02:59.8]}
5... dxe4 {[%clk 0:02:57.6]} 6. Nxe4 {[%clk 0:03:00.5]} 6... Nf6 {[%clk
0:02:58.4]} 7. Bd3 {[%clk 0:02:54.5]} 7... Nxe4 {[%clk 0:02:55.6]} 8. Bxe4
{[%clk 0:02:55.4]} 8... O-O {[%clk 0:02:55.8]} 9. O-O {[%clk 0:02:56]} 9... Nd7
{[%clk 0:02:55.1]} 10. Re1 {[%clk 0:02:55.2]} 10... c5 {[%clk 0:02:53.9]} 11.
Be3 {[%clk 0:02:49.2]} 11... cxd4 {[%clk 0:02:51.2]} 12. Bxd4 {[%clk 0:02:49.6]}
12... e5 {[%clk 0:02:50.5]} 13. Bc3 {[%clk 0:02:48.5]} 13... Qc7 {[%clk
0:02:44.8]} 14. a4 {[%clk 0:02:41.2]} 14... a6 {[%clk 0:02:43.1]} 15. Bb4 {[%clk
0:02:33.4]} 15... Rd8 {[%clk 0:02:13.6]} 16. Bd6 {[%clk 0:02:33.5]} 16... Qb6
{[%clk 0:02:13.8]} 17. a5 {[%clk 0:02:32.5]} 17... Qxb2 {[%clk 0:01:58.2]} 18.
Bc7 {[%clk 0:02:17.6]} 18... Re8 {[%clk 0:01:52.6]} 19. Bd5 {[%clk 0:02:05.8]}
19... Qc3 {[%clk 0:01:33]} 20. Bxf7+ {[%clk 0:01:50.7]} 20... Kxf7 {[%clk
0:01:31.1]} 21. Ng5+ {[%clk 0:01:51.4]} 21... Kf6 {[%clk 0:01:19.1]} 22. Ne4+
{[%clk 0:01:50]} 1-0

[Event "Late-Titled-Tuesday-Blitz-February-27-2024"]
[Site "Chess.com"]
[Date "2024.02.27"]
[Round "5"]
[White "bipe137"]
[Black "Adar_07"]
[Result "0-1"]
[WhiteElo "2578"]
[BlackElo "2788"]
[TimeControl "180+1"]
[EndTime "14:52:54 PST"]
[Termination "Adar_07 won by resignation"]

1. d4 {[%clk 0:03:00.9]} 1... Nf6 {[%clk 0:02:59.4]} 2. c4 {[%clk 0:03:01.4]}
2... e6 {[%clk 0:02:59.3]} 3. Nc3 {[%clk 0:03:01.8]} 3... c5 {[%clk 0:02:58.4]}
4. d5 {[%clk 0:03:01.7]} 4... exd5 {[%clk 0:02:59.3]} 5. cxd5 {[%clk 0:03:02.6]}
5... g6 {[%clk 0:02:59.9]} 6. e4 {[%clk 0:03:03]} 6... d6 {[%clk 0:02:59.8]} 7.
Nf3 {[%clk 0:03:03.2]} 7... a6 {[%clk 0:03:00.1]} 8. a4 {[%clk 0:03:02.7]} 8...
Bg4 {[%clk 0:03:00.2]} 9. Qb3 {[%clk 0:03:03.3]} 9... Bxf3 {[%clk 0:02:43.2]}
10. Qxb7 {[%clk 0:03:03.1]} 10... Nbd7 {[%clk 0:02:43.8]} 11. gxf3 {[%clk
0:03:02.9]} 11... Bg7 {[%clk 0:02:40]} 12. Be2 {[%clk 0:03:01.3]} 12... O-O
{[%clk 0:02:39.9]} 13. Qb3 {[%clk 0:03:01.7]} 13... Nh5 {[%clk 0:02:27]} 14. f4
{[%clk 0:02:50.9]} 14... Qh4 {[%clk 0:02:26.7]} 15. Bxh5 {[%clk 0:02:48]} 15...
Qxh5 {[%clk 0:02:27.6]} 16. Qd1 {[%clk 0:02:46.8]} 16... Qh3 {[%clk 0:02:27.6]}
17. Be3 {[%clk 0:02:30.2]} 17... Rab8 {[%clk 0:02:04.1]} 18. Qe2 {[%clk
0:02:13.8]} 18... Rb4 {[%clk 0:02:03.5]} 19. O-O-O {[%clk 0:01:56]} 19... Rfb8
{[%clk 0:01:58]} 20. Qxa6 {[%clk 0:01:46.1]} 20... Rxb2 {[%clk 0:01:42.2]} 21.
Nb5 {[%clk 0:01:44.2]} 21... Qf3 {[%clk 0:01:31.2]} 22. Rd2 {[%clk 0:01:39]}
22... Qxh1+ {[%clk 0:01:28.9]} 0-1

[Event "Late-Titled-Tuesday-Blitz-February-27-2024"]
[Site "Chess.com"]
[Date "2024.02.27"]
[Round "5"]
[White "McCarthyStone"]
[Black "lluiss"]
[Result "1-0"]
[WhiteElo "2355"]
[BlackElo "2133"]
[TimeControl "180+1"]
[EndTime "14:52:58 PST"]
[Termination "McCarthyStone won by resignation"]

1. c4 {[%clk 0:03:00.9]} 1... e6 {[%clk 0:02:58.2]} 2. Nc3 {[%clk 0:02:58.4]}
2... d5 {[%clk 0:02:58.2]} 3. cxd5 {[%clk 0:02:59.1]} 3... exd5 {[%clk
0:02:57.5]} 4. d4 {[%clk 0:03:00]} 4... c6 {[%clk 0:02:55]} 5. Bf4 {[%clk
0:03:00.2]} 5... Bd6 {[%clk 0:02:53.9]} 6. Bxd6 {[%clk 0:03:00.5]} 6... Qxd6
{[%clk 0:02:54.8]} 7. Nf3 {[%clk 0:03:01.2]} 7... Nf6 {[%clk 0:02:54.3]} 8. Qc2
{[%clk 0:03:01.2]} 8... O-O {[%clk 0:02:51.5]} 9. e3 {[%clk 0:03:01.6]} 9... Re8
{[%clk 0:02:42.1]} 10. Bd3 {[%clk 0:03:01.4]} 10... h6 {[%clk 0:02:41]} 11. O-O
{[%clk 0:02:58.8]} 11... Be6 {[%clk 0:02:38.6]} 12. Rab1 {[%clk 0:02:55.5]}
12... Nbd7 {[%clk 0:02:36.8]} 13. b4 {[%clk 0:02:51.7]} 13... a6 {[%clk
0:02:28.1]} 14. a4 {[%clk 0:02:51.1]} 14... Nb6 {[%clk 0:02:27.7]} 15. Ne5
{[%clk 0:02:47.2]} 15... Nfd7 {[%clk 0:02:23.3]} 16. f4 {[%clk 0:02:45.9]} 16...
f6 {[%clk 0:02:23.4]} 17. Bh7+ {[%clk 0:02:39.3]} 17... Kf8 {[%clk 0:02:22.3]}
18. Ng6+ {[%clk 0:02:32.5]} 18... Kf7 {[%clk 0:02:22]} 19. f5 {[%clk 0:02:20.8]}
19... Bxf5 {[%clk 0:02:21.8]} 20. Qxf5 {[%clk 0:02:10.7]} 20... Rxe3 {[%clk
0:02:22.7]} 21. Nd1 {[%clk 0:01:48.2]} 21... Re2 {[%clk 0:02:09.2]} 22. Qh5
{[%clk 0:01:33.6]} 22... Ke6 {[%clk 0:01:52.2]} 23. Qxe2+ {[%clk 0:01:15.5]} 1-0

[Event "Late-Titled-Tuesday-Blitz-February-27-2024"]
[Site "Chess.com"]
[Date "2024.02.27"]
[Round "5"]
[White "miraitrunks"]
[Black "Nemsko"]
[Result "0-1"]
[WhiteElo "2218"]
[BlackElo "2394"]
[TimeControl "180+1"]
[EndTime "14:53:02 PST"]
[Termination "Nemsko won by resignation"]

1. d4 {[%clk 0:02:50.9]} 1... Nf6 {[%clk 0:03:00]} 2. c4 {[%clk 0:02:44.6]} 2...
e6 {[%clk 0:02:59.4]} 3. Nc3 {[%clk 0:02:44.2]} 3... Bb4 {[%clk 0:02:58.6]} 4.
e3 {[%clk 0:02:44.4]} 4... d5 {[%clk 0:02:58.9]} 5. Bd3 {[%clk 0:02:44.3]} 5...
O-O {[%clk 0:02:58.6]} 6. a3 {[%clk 0:02:44.6]} 6... Bd6 {[%clk 0:02:58.4]} 7.
Nf3 {[%clk 0:02:42.9]} 7... c6 {[%clk 0:02:56.6]} 8. O-O {[%clk 0:02:42.4]} 8...
Nbd7 {[%clk 0:02:56.2]} 9. b4 {[%clk 0:02:40]} 9... Qe7 {[%clk 0:02:56.1]} 10.
b5 {[%clk 0:02:37.3]} 10... e5 {[%clk 0:02:53.4]} 11. dxe5 {[%clk 0:02:05.4]}
11... Nxe5 {[%clk 0:02:54.3]} 12. Bb2 {[%clk 0:01:52.4]} 12... Nxd3 {[%clk
0:02:48.1]} 13. Qxd3 {[%clk 0:01:53.3]} 13... dxc4 {[%clk 0:02:46.7]} 14. Qxc4
{[%clk 0:01:54.2]} 14... Be6 {[%clk 0:02:47.1]} 15. Qh4 {[%clk 0:01:52]} 15...
h6 {[%clk 0:02:36.5]} 16. bxc6 {[%clk 0:01:48.1]} 16... bxc6 {[%clk 0:02:36.4]}
17. Nd4 {[%clk 0:01:44.6]} 17... Bd7 {[%clk 0:02:34.1]} 18. Nce2 {[%clk
0:01:33.6]} 18... Rab8 {[%clk 0:02:33.3]} 19. Bc3 {[%clk 0:01:33.9]} 19... Rfe8
{[%clk 0:02:29.8]} 20. Ng3 {[%clk 0:01:33.3]} 20... Nd5 {[%clk 0:02:25.2]} 21.
Qxe7 {[%clk 0:01:14.3]} 21... Bxe7 {[%clk 0:02:24.9]} 22. Rfc1 {[%clk
0:01:13.3]} 22... Nxc3 {[%clk 0:02:23.3]} 23. Rxc3 {[%clk 0:01:14.2]} 23... c5
{[%clk 0:02:22.7]} 24. Ndf5 {[%clk 0:00:49.4]} 24... Bf6 {[%clk 0:02:22.4]} 25.
Rac1 {[%clk 0:00:49.4]} 25... Bxc3 {[%clk 0:02:21.8]} 26. Rxc3 {[%clk
0:00:50.1]} 26... Bxf5 {[%clk 0:02:17.6]} 0-1

[Event "Late-Titled-Tuesday-Blitz-February-27-2024"]
[Site "Chess.com"]
[Date "2024.02.27"]
[Round "5"]
[White "Mikhail646464"]
[Black "DryCounty"]
[Result "0-1"]
[WhiteElo "2360"]
[BlackElo "2661"]
[TimeControl "180+1"]
[EndTime "14:53:40 PST"]
[Termination "DryCounty won by resignation"]

1. Nf3 {[%clk 0:02:52.4]} 1... Nf6 {[%clk 0:02:57]} 2. g3 {[%clk 0:02:50.9]}
2... g6 {[%clk 0:02:56.8]} 3. Bg2 {[%clk 0:02:51.4]} 3... Bg7 {[%clk 0:02:57.1]}
4. O-O {[%clk 0:02:50.8]} 4... O-O {[%clk 0:02:57.5]} 5. d4 {[%clk 0:02:48.4]}
5... d6 {[%clk 0:02:57.7]} 6. b3 {[%clk 0:02:47.4]} 6... a5 {[%clk 0:02:56.7]}
7. a4 {[%clk 0:02:43.5]} 7... Nc6 {[%clk 0:02:53.7]} 8. Bb2 {[%clk 0:02:43.7]}
8... Bf5 {[%clk 0:02:51.7]} 9. Nbd2 {[%clk 0:02:40.7]} 9... Qd7 {[%clk
0:02:48.4]} 10. Re1 {[%clk 0:02:39.4]} 10... Bh3 {[%clk 0:02:48.1]} 11. Bh1
{[%clk 0:02:38.4]} 11... Rfe8 {[%clk 0:02:46.9]} 12. e4 {[%clk 0:02:37.2]} 12...
e5 {[%clk 0:02:40.1]} 13. d5 {[%clk 0:02:36.7]} 13... Nb4 {[%clk 0:02:38.6]} 14.
Ng5 {[%clk 0:02:29.9]} 14... Bg4 {[%clk 0:02:34]} 15. f3 {[%clk 0:02:26.8]}
15... Bh6 {[%clk 0:02:22.7]} 16. h4 {[%clk 0:02:19.3]} 16... Bh5 {[%clk
0:02:11.9]} 17. Nf1 {[%clk 0:01:56.7]} 17... Bg7 {[%clk 0:02:03.1]} 18. g4
{[%clk 0:01:48.7]} 18... h6 {[%clk 0:01:59.7]} 19. gxh5 {[%clk 0:01:32.1]} 19...
hxg5 {[%clk 0:01:59.1]} 20. hxg6 {[%clk 0:01:31.1]} 20... fxg6 {[%clk
0:01:58.1]} 21. hxg5 {[%clk 0:01:22.8]} 21... Nh5 {[%clk 0:01:57.8]} 22. Qd2
{[%clk 0:01:05.4]} 22... Nf4 {[%clk 0:01:53.3]} 23. Bg2 {[%clk 0:00:56.5]} 23...
Qe7 {[%clk 0:01:49.2]} 24. Ne3 {[%clk 0:00:46]} 24... Qxg5 {[%clk 0:01:46.8]}
25. Ng4 {[%clk 0:00:46.5]} 25... Nh3+ {[%clk 0:01:44.9]} 0-1

[Event "Late-Titled-Tuesday-Blitz-February-27-2024"]
[Site "Chess.com"]
[Date "2024.02.27"]
[Round "5"]
[White "pinguino120"]
[Black "Anna20240"]
[Result "1-0"]
[WhiteElo "2369"]
[BlackElo "1911"]
[TimeControl "180+1"]
[EndTime "14:53:42 PST"]
[Termination "pinguino120 won by resignation"]

1. d4 {[%clk 0:03:00.9]} 1... d5 {[%clk 0:02:59.3]} 2. Nc3 {[%clk 0:02:58.3]}
2... c6 {[%clk 0:02:59.9]} 3. e4 {[%clk 0:02:56.8]} 3... dxe4 {[%clk 0:02:58.4]}
4. Nxe4 {[%clk 0:02:56.7]} 4... Bf5 {[%clk 0:02:58.4]} 5. Ng3 {[%clk 0:02:56.1]}
5... Bg6 {[%clk 0:02:58]} 6. h4 {[%clk 0:02:54.1]} 6... h6 {[%clk 0:02:57.4]} 7.
h5 {[%clk 0:02:53.7]} 7... Bh7 {[%clk 0:02:57.1]} 8. Bd3 {[%clk 0:02:52.2]} 8...
Bxd3 {[%clk 0:02:57.3]} 9. Qxd3 {[%clk 0:02:53.1]} 9... Nf6 {[%clk 0:02:55.6]}
10. Nf3 {[%clk 0:02:52.7]} 10... Nbd7 {[%clk 0:02:55]} 11. Bd2 {[%clk
0:02:52.5]} 11... e6 {[%clk 0:02:53.3]} 12. O-O-O {[%clk 0:02:52.3]} 12... Qc7
{[%clk 0:02:45.1]} 13. Rhe1 {[%clk 0:02:51]} 13... O-O-O {[%clk 0:02:44]} 14.
Kb1 {[%clk 0:02:50.5]} 14... Bd6 {[%clk 0:02:41.3]} 15. Ne4 {[%clk 0:02:49.9]}
15... Nxe4 {[%clk 0:02:40.3]} 16. Qxe4 {[%clk 0:02:49.7]} 16... Nf6 {[%clk
0:02:40.3]} 17. Qd3 {[%clk 0:02:47.3]} 17... Nxh5 {[%clk 0:02:39.3]} 18. c4
{[%clk 0:02:36.7]} 18... Nf6 {[%clk 0:02:36.2]} 19. g3 {[%clk 0:02:36.3]} 19...
Rhe8 {[%clk 0:02:32.4]} 20. Bc3 {[%clk 0:02:28.8]} 20... Ng4 {[%clk 0:01:58.2]}
21. Qc2 {[%clk 0:02:21.7]} 21... Nf6 {[%clk 0:01:38.1]} 22. c5 {[%clk
0:02:16.8]} 22... Be7 {[%clk 0:01:33.6]} 23. Qa4 {[%clk 0:02:16.9]} 23... a6
{[%clk 0:01:31.7]} 24. Ba5 {[%clk 0:02:16.3]} 24... Qd7 {[%clk 0:01:17.5]} 25.
Ne5 {[%clk 0:02:16.1]} 25... Qd5 {[%clk 0:01:12.1]} 26. Bxd8 {[%clk 0:02:08.8]}
26... Rxd8 {[%clk 0:01:11.9]} 27. Nxf7 {[%clk 0:02:07]} 27... Qf5+ {[%clk
0:00:56.3]} 28. Qc2 {[%clk 0:02:03.5]} 28... Rf8 {[%clk 0:00:47.8]} 29. Qxf5
{[%clk 0:02:02.2]} 29... exf5 {[%clk 0:00:47.4]} 30. Rxe7 {[%clk 0:02:01.9]}
30... Nd5 {[%clk 0:00:47]} 31. Nd6+ {[%clk 0:02:01.4]} 31... Kd8 {[%clk
0:00:46.4]} 32. Rxb7 {[%clk 0:02:01]} 1-0

[Event "Late-Titled-Tuesday-Blitz-February-27-2024"]
[Site "Chess.com"]
[Date "2024.02.27"]
[Round "5"]
[White "Evandro_Barbosa"]
[Black "lucliasco"]
[Result "1/2-1/2"]
[WhiteElo "2674"]
[BlackElo "2886"]
[TimeControl "180+1"]
[EndTime "14:53:48 PST"]
[Termination "Game drawn by agreement"]

1. Nf3 {[%clk 0:03:00.9]} 1... d5 {[%clk 0:02:51.6]} 2. g3 {[%clk 0:03:01]} 2...
Bg4 {[%clk 0:02:41.2]} 3. Bg2 {[%clk 0:03:01]} 3... Nd7 {[%clk 0:02:40.7]} 4. d4
{[%clk 0:03:00.6]} 4... e6 {[%clk 0:02:40]} 5. O-O {[%clk 0:03:00.6]} 5... c6
{[%clk 0:02:39.7]} 6. Nbd2 {[%clk 0:03:00.6]} 6... Ngf6 {[%clk 0:02:39.2]} 7.
Re1 {[%clk 0:03:00.6]} 7... Be7 {[%clk 0:02:34.8]} 8. e4 {[%clk 0:02:55.5]} 8...
O-O {[%clk 0:02:34.3]} 9. c3 {[%clk 0:02:54.4]} 9... Nxe4 {[%clk 0:02:21.6]} 10.
Nxe4 {[%clk 0:02:53.5]} 10... dxe4 {[%clk 0:02:17.1]} 11. Rxe4 {[%clk
0:02:54.4]} 11... Bf5 {[%clk 0:02:02.4]} 12. Re1 {[%clk 0:02:52.8]} 12... h6
{[%clk 0:02:01.2]} 13. Qb3 {[%clk 0:02:52.6]} 13... Qb6 {[%clk 0:01:59.7]} 14.
Nd2 {[%clk 0:02:52.3]} 14... Qxb3 {[%clk 0:01:59]} 15. axb3 {[%clk 0:02:52.1]}
15... a6 {[%clk 0:01:56.6]} 16. Nc4 {[%clk 0:02:52]} 16... Rad8 {[%clk
0:01:55.4]} 17. Na5 {[%clk 0:02:49.2]} 17... c5 {[%clk 0:01:55.2]} 18. Nxb7
{[%clk 0:02:46.2]} 18... cxd4 {[%clk 0:01:55.7]} 19. Nxd8 {[%clk 0:02:43.9]}
19... Rxd8 {[%clk 0:01:56.4]} 20. cxd4 {[%clk 0:02:39.4]} 20... Bb4 {[%clk
0:01:55.9]} 21. Rf1 {[%clk 0:02:33]} 21... Bd3 {[%clk 0:01:53.6]} 22. Be3 {[%clk
0:02:23.9]} 22... Bxf1 {[%clk 0:01:53.5]} 23. Bxf1 {[%clk 0:02:23.4]} 23... a5
{[%clk 0:01:54.3]} 24. Rc1 {[%clk 0:02:21.6]} 24... Nf6 {[%clk 0:01:54.1]} 25.
Bg2 {[%clk 0:02:11.7]} 25... Nd5 {[%clk 0:01:53.4]} 26. Kf1 {[%clk 0:02:06.9]}
26... Nxe3+ {[%clk 0:01:49]} 27. fxe3 {[%clk 0:02:06.5]} 27... Bd2 {[%clk
0:01:49.9]} 28. Rd1 {[%clk 0:01:54.6]} 28... Bxe3 {[%clk 0:01:48]} 29. d5 {[%clk
0:01:54.7]} 29... exd5 {[%clk 0:01:48]} 30. Rxd5 {[%clk 0:01:54.5]} 30... Rxd5
{[%clk 0:01:47]} 31. Bxd5 {[%clk 0:01:54.2]} 31... Bd4 {[%clk 0:01:47.8]} 32.
Ke2 {[%clk 0:01:53.9]} 32... Bxb2 {[%clk 0:01:48.1]} 33. Kf3 {[%clk 0:01:53.7]}
33... Kf8 {[%clk 0:01:48.6]} 34. Bc4 {[%clk 0:01:53.5]} 34... Ke7 {[%clk
0:01:49]} 35. h4 {[%clk 0:01:53.6]} 35... Ba3 {[%clk 0:01:49.3]} 36. h5 {[%clk
0:01:51.4]} 36... Kf6 {[%clk 0:01:42.8]} 37. g4 {[%clk 0:01:50.9]} 37... Bb4
{[%clk 0:01:43]} 38. Bd3 {[%clk 0:01:50]} 38... Ke5 {[%clk 0:01:42.9]} 39. Bc4
{[%clk 0:01:49.9]} 39... f6 {[%clk 0:01:42.5]} 40. Bd3 {[%clk 0:01:49.4]} 40...
Kd4 {[%clk 0:01:43.2]} 41. Bg6 {[%clk 0:01:47.9]} 41... Bd6 {[%clk 0:01:41]} 42.
Bf7 {[%clk 0:01:47.6]} 42... Kc5 {[%clk 0:01:41.2]} 43. Bg8 {[%clk 0:01:47.4]}
43... Kb4 {[%clk 0:01:41.2]} 44. Ke4 {[%clk 0:01:46.8]} 44... Bc5 {[%clk
0:01:40.4]} 45. Kf5 {[%clk 0:01:46.7]} 45... Be3 {[%clk 0:01:40.4]} 46. Kg6
{[%clk 0:01:46.6]} 46... Bg5 {[%clk 0:01:41.3]} 47. Kxg7 {[%clk 0:01:46.7]}
47... a4 {[%clk 0:01:41.9]} 48. bxa4 {[%clk 0:01:46.3]} 48... Kxa4 {[%clk
0:01:42.8]} 49. Kg6 {[%clk 0:01:46.2]} 1/2-1/2

[Event "Late-Titled-Tuesday-Blitz-February-27-2024"]
[Site "Chess.com"]
[Date "2024.02.27"]
[Round "5"]
[White "cthake"]
[Black "CheckBits"]
[Result "0-1"]
[WhiteElo "1821"]
[BlackElo "2368"]
[TimeControl "180+1"]
[EndTime "14:53:50 PST"]
[Termination "CheckBits won by resignation"]

1. b3 {[%clk 0:03:00.9]} 1... e5 {[%clk 0:02:56.7]} 2. Bb2 {[%clk 0:03:00.9]}
2... Nc6 {[%clk 0:02:56.8]} 3. e3 {[%clk 0:02:53.4]} 3... a6 {[%clk 0:02:55.4]}
4. c4 {[%clk 0:02:49]} 4... Nf6 {[%clk 0:02:45.4]} 5. d4 {[%clk 0:02:48.5]} 5...
exd4 {[%clk 0:02:44.6]} 6. exd4 {[%clk 0:02:48.8]} 6... d5 {[%clk 0:02:41.8]} 7.
Nf3 {[%clk 0:02:41.8]} 7... Bb4+ {[%clk 0:02:37.2]} 8. Nc3 {[%clk 0:02:34.9]}
8... O-O {[%clk 0:02:36.1]} 9. Be2 {[%clk 0:02:25.1]} 9... Ne4 {[%clk
0:02:25.8]} 10. Qd3 {[%clk 0:02:25.3]} 10... Bf5 {[%clk 0:02:22.9]} 11. Qe3
{[%clk 0:01:59]} 11... Re8 {[%clk 0:02:20.2]} 12. Qc1 {[%clk 0:01:39.5]} 12...
dxc4 {[%clk 0:02:15.3]} 13. d5 {[%clk 0:01:21]} 13... Qxd5 {[%clk 0:02:04.7]}
14. O-O {[%clk 0:01:16.5]} 14... Nxc3 {[%clk 0:01:57.8]} 15. Bxc4 {[%clk
0:01:16.6]} 15... Qxc4 {[%clk 0:01:53.1]} 16. Qg5 {[%clk 0:01:02]} 16... Qg4
{[%clk 0:01:42.4]} 17. Qxg4 {[%clk 0:00:30.3]} 17... Bxg4 {[%clk 0:01:40]} 18.
Rac1 {[%clk 0:00:21.6]} 18... Ne2+ {[%clk 0:01:39]} 0-1

[Event "Late-Titled-Tuesday-Blitz-February-27-2024"]
[Site "Chess.com"]
[Date "2024.02.27"]
[Round "5"]
[White "Viktor_Poddubnyi"]
[Black "DonMicheleCorleone"]
[Result "0-1"]
[WhiteElo "2272"]
[BlackElo "2533"]
[TimeControl "180+1"]
[EndTime "14:53:56 PST"]
[Termination "DonMicheleCorleone won on time"]

1. e4 {[%clk 0:02:26.3]} 1... e6 {[%clk 0:02:59.2]} 2. d4 {[%clk 0:02:26.1]}
2... d5 {[%clk 0:02:59.3]} 3. Nd2 {[%clk 0:02:26]} 3... dxe4 {[%clk 0:02:57.5]}
4. Nxe4 {[%clk 0:02:25.6]} 4... Nd7 {[%clk 0:02:58.2]} 5. Nf3 {[%clk 0:02:25.6]}
5... Ngf6 {[%clk 0:02:58.3]} 6. Bd3 {[%clk 0:02:26.1]} 6... Nxe4 {[%clk
0:02:57.1]} 7. Bxe4 {[%clk 0:02:27]} 7... Nf6 {[%clk 0:02:56.5]} 8. Bg5 {[%clk
0:02:27.1]} 8... c5 {[%clk 0:02:55.5]} 9. Qd3 {[%clk 0:02:10.7]} 9... cxd4
{[%clk 0:02:50.8]} 10. O-O-O {[%clk 0:02:10.4]} 10... Qa5 {[%clk 0:02:49.1]} 11.
Bxf6 {[%clk 0:01:55.3]} 11... gxf6 {[%clk 0:02:50]} 12. Qxd4 {[%clk 0:01:55.1]}
12... Be7 {[%clk 0:02:32]} 13. Bxb7 {[%clk 0:01:36.4]} 13... Bxb7 {[%clk
0:02:25.1]} 14. Qd7+ {[%clk 0:01:36.4]} 14... Kf8 {[%clk 0:02:25.6]} 15. Qxb7
{[%clk 0:01:37.3]} 15... Re8 {[%clk 0:02:19.2]} 16. Kb1 {[%clk 0:01:35]} 16...
Kg7 {[%clk 0:02:18.9]} 17. Rd7 {[%clk 0:01:24.5]} 17... Rb8 {[%clk 0:02:14.8]}
18. Qxa7 {[%clk 0:01:19.4]} 18... Rxb2+ {[%clk 0:02:13.1]} 19. Kc1 {[%clk
0:00:25.5]} 19... Qc3 {[%clk 0:02:09]} 20. Qa4 {[%clk 0:00:12.6]} 20... Rhb8
{[%clk 0:02:02]} 0-1